[Event "NK Rapid Vrouwen 2019"]
[Site "Amstelveen, Netherlands"]
[Date "2019.12.01"]
[Round "4.1"]
[White "Ratsma, Rosa"]
[Black "Roebers, Eline"]
[Result "1-0"]
[TimeControl "15m+10s"]
[WhiteTitle "WIM"]
[WhiteFideId "1033662"]
[BlackFideId "1058401"]
[WhiteElo "2274"]
[BlackElo "2102"]

1. e4 {[%clk 00:15:18]} {[%emt 00:00:02]} c5 {[%clk 00:15:19]} {[%emt
00:00:01]} 2. Nf3 {[%clk 00:15:26]} {[%emt 00:00:02]} e6 {[%clk 00:15:25]}
{[%emt 00:00:04]} 3. d4 {[%clk 00:15:34]} {[%emt 00:00:02]} cxd4 {[%clk
00:15:33]} {[%emt 00:00:02]} 4. Nxd4 {[%clk 00:15:42]} {[%emt 00:00:02]} Nc6
{[%clk 00:15:41]} {[%emt 00:00:03]} 5. Nc3 {[%clk 00:15:49]} {[%emt 00:00:02]}
Qc7 {[%clk 00:15:45]} {[%emt 00:00:06]} 6. Be3 {[%clk 00:15:57]} {[%emt
00:00:02]} a6 {[%clk 00:15:51]} {[%emt 00:00:05]} 7. Qd2 {[%clk 00:16:04]}
{[%emt 00:00:03]} Nf6 {[%clk 00:15:09]} {[%emt 00:00:51]} 8. f4 {[%clk
00:16:10]} {[%emt 00:00:04]} Bb4 {[%clk 00:13:27]} {[%emt 00:01:53]} 9. Bd3
{[%clk 00:16:17]} {[%emt 00:00:03]} Na5 {[%clk 00:12:37]} {[%emt 00:01:00]} 10.
a3 {[%clk 00:16:22]} {[%emt 00:00:05]} Bxc3 {[%clk 00:12:44]} {[%emt 00:00:03]}
11. Qxc3 {[%clk 00:16:29]} {[%emt 00:00:03]} Qxc3+ {[%clk 00:12:29]} {[%emt
00:00:25]} 12. bxc3 {[%clk 00:16:36]} {[%emt 00:00:02]} d5 {[%clk 00:12:13]}
{[%emt 00:00:27]} 13. exd5 {[%clk 00:16:26]} {[%emt 00:00:20]} exd5 {[%clk
00:11:35]} {[%emt 00:00:48]} 14. Nb3 {[%clk 00:16:12]} {[%emt 00:00:25]} Nc4
{[%clk 00:11:04]} {[%emt 00:00:41]} 15. Bd4 {[%clk 00:16:14]} {[%emt 00:00:07]}
O-O {[%clk 00:10:49]} {[%emt 00:00:25]} 16. Bxf6 {[%clk 00:15:52]} {[%emt
00:00:32]} gxf6 {[%clk 00:10:58]} {[%emt 00:00:02]} 17. O-O {[%clk 00:13:47]}
{[%emt 00:02:14]} Re8 {[%clk 00:10:42]} {[%emt 00:00:26]} 18. Rf3 {[%clk
00:13:27]} {[%emt 00:00:30]} b6 {[%clk 00:09:39]} {[%emt 00:01:14]} 19. Nd4
{[%clk 00:10:57]} {[%emt 00:02:39]} Nd6 {[%clk 00:08:53]} {[%emt 00:00:56]} 20.
a4 {[%clk 00:09:29]} {[%emt 00:01:38]} Bd7 {[%clk 00:08:38]} {[%emt 00:00:25]}
21. Ne2 {[%clk 00:08:12]} {[%emt 00:01:27]} Bf5 {[%clk 00:06:55]} {[%emt
00:01:52]} 22. Nd4 {[%clk 00:07:50]} {[%emt 00:00:33]} Bd7 {[%clk 00:06:21]}
{[%emt 00:00:44]} 23. h3 {[%clk 00:07:48]} {[%emt 00:00:12]} Ne4 {[%clk
00:05:18]} {[%emt 00:01:13]} 24. c4 {[%clk 00:07:43]} {[%emt 00:00:16]} dxc4
{[%clk 00:04:46]} {[%emt 00:00:42]} 25. Bxc4 {[%clk 00:07:50]} {[%emt
00:00:03]} Kf8 {[%clk 00:04:29]} {[%emt 00:00:27]} 26. Bd5 {[%clk 00:07:30]}
{[%emt 00:00:30]} Rad8 {[%clk 00:04:05]} {[%emt 00:00:34]} 27. c4 {[%clk
00:07:16]} {[%emt 00:00:24]} a5 {[%clk 00:02:43]} {[%emt 00:01:31]} 28. Rb3
{[%clk 00:05:27]} {[%emt 00:01:59]} Rb8 {[%clk 00:02:48]} {[%emt 00:00:05]} 29.
Nc6 {[%clk 00:05:03]} {[%emt 00:00:35]} Bxc6 {[%clk 00:01:46]} {[%emt
00:01:12]} 30. Bxc6 {[%clk 00:05:11]} {[%emt 00:00:02]} Nc5 {[%clk 00:01:21]}
{[%emt 00:00:35]} 31. Rb2 {[%clk 00:04:27]} {[%emt 00:00:54]} Rec8 {[%clk
00:00:52]} {[%emt 00:00:40]} 32. Bb5 {[%clk 00:03:35]} {[%emt 00:01:02]} Nd3
{[%clk 00:00:36]} {[%emt 00:00:26]} 33. Rd2 {[%clk 00:03:25]} {[%emt 00:00:21]}
Nxf4 {[%clk 00:00:32]} {[%emt 00:00:13]} 34. Rf1 {[%clk 00:03:24]} {[%emt
00:00:11]} Nh5 {[%clk 00:00:21]} {[%emt 00:00:21]} 35. Rf5 {[%clk 00:02:40]}
{[%emt 00:00:54]} Ng3 {[%clk 00:00:19]} {[%emt 00:00:12]} 36. Rf3 {[%clk
00:02:07]} {[%emt 00:00:43]} Ne4 {[%clk 00:00:19]} {[%emt 00:00:10]} 37. Rd4
{[%clk 00:02:03]} {[%emt 00:00:14]} Nc5 {[%clk 00:00:15]} {[%emt 00:00:14]} 38.
Rxf6 {[%clk 00:02:04]} {[%emt 00:00:09]} Rc7 {[%clk 00:00:15]} {[%emt
00:00:11]} 39. Rh6 {[%clk 00:01:38]} {[%emt 00:00:36]} Kg8 {[%clk 00:00:14]}
{[%emt 00:00:11]} 40. Rg4+ {[%clk 00:01:35]} {[%emt 00:00:12]} Kh8 {[%clk
00:00:18]} {[%emt 00:00:06]} 41. Rgh4 {[%clk 00:00:48]} {[%emt 00:00:57]} f5
{[%clk 00:00:27]} {[%emt 00:00:01]} 42. Rf6 {[%clk 00:00:54]} {[%emt 00:00:04]}
Ne4 {[%clk 00:00:19]} {[%emt 00:00:17]} 43. Rxf5 {[%clk 00:00:57]} {[%emt
00:00:07]} Nd6 {[%clk 00:00:21]} {[%emt 00:00:09]} 44. Rd5 {[%emt 00:00:20]}
Nxb5 {[%clk 00:00:25]} 45. cxb5 {[%clk 00:00:50]} {[%emt 00:00:13]} Rg8 {[%clk
00:00:15]} {[%emt 00:00:20]} 46. Rd2 {[%clk 00:00:30]} {[%emt 00:00:30]} Rg6
{[%clk 00:00:17]} {[%emt 00:00:08]} 47. Re4 {[%clk 00:00:31]} {[%emt 00:00:09]}
Kg7 {[%clk 00:00:18]} {[%emt 00:00:09]} 48. Kh2 {[%clk 00:00:38]} {[%emt
00:00:03]} Rf6 {[%clk 00:00:15]} {[%emt 00:00:13]} 49. Red4 {[%clk 00:00:41]}
{[%emt 00:00:06]} Re7 {[%clk 00:00:15]} {[%emt 00:00:10]} 50. Rg4+ {[%clk
00:00:23]} {[%emt 00:00:29]} Kf7 {[%clk 00:00:19]} {[%emt 00:00:05]} 51. Rd8
{[%clk 00:00:29]} {[%emt 00:00:04]} Ke6 {[%clk 00:00:14]} {[%emt 00:00:15]} 52.
Re4+ {[%clk 00:00:29]} {[%emt 00:00:10]} Kf7 {[%emt 00:00:08]} 53. Rh4 {[%clk
00:00:32]} Kg7 {[%clk 00:00:26]} {[%emt 00:00:07]} 54. Rb8 {[%clk 00:00:36]}
{[%emt 00:00:06]} Rd7 {[%clk 00:00:27]} {[%emt 00:00:09]} 55. Rg4+ {[%clk
00:00:38]} {[%emt 00:00:09]} Kf7 {[%clk 00:00:30]} {[%emt 00:00:07]} 56. Rc8
{[%clk 00:00:28]} {[%emt 00:00:20]} Re6 {[%clk 00:00:27]} {[%emt 00:00:13]} 57.
Rf4+ {[%clk 00:00:28]} {[%emt 00:00:10]} Kg7 {[%clk 00:00:29]} {[%emt
00:00:08]} 58. h4 {[%clk 00:00:33]} {[%emt 00:00:05]} Rg6 {[%clk 00:00:25]}
{[%emt 00:00:13]} 59. h5 {[%clk 00:00:33]} {[%emt 00:00:11]} Rg5 {[%clk
00:00:19]} {[%emt 00:00:16]} 60. g4 {[%clk 00:00:31]} {[%emt 00:00:11]} Rgd5
{[%clk 00:00:24]} {[%emt 00:00:05]} 61. Rc2 {[%clk 00:00:31]} {[%emt 00:00:11]}
Rd4 {[%clk 00:00:16]} {[%emt 00:00:18]} 62. Rcf2 {[%clk 00:00:31]} {[%emt
00:00:10]} Rb4 {[%clk 00:00:14]} {[%emt 00:00:12]} 63. Rxb4 {[%clk 00:00:23]}
{[%emt 00:00:17]} axb4 {[%clk 00:00:23]} {[%emt 00:00:01]} 64. Rb2 {[%clk
00:00:19]} {[%emt 00:00:14]} Rd4 {[%clk 00:00:15]} {[%emt 00:00:18]} 65. Kg3
{[%clk 00:00:24]} {[%emt 00:00:05]} b3 {[%clk 00:00:15]} {[%emt 00:00:09]} 66.
Rxb3 {[%clk 00:00:23]} {[%emt 00:00:12]} Rxa4 {[%clk 00:00:24]} {[%emt
00:00:01]} 67. Rd3 {[%clk 00:00:22]} {[%emt 00:00:11]} Rb4 {[%clk 00:00:17]}
{[%emt 00:00:18]} 68. Rd7+ {[%clk 00:00:26]} {[%emt 00:00:06]} Kg8 {[%clk
00:00:19]} {[%emt 00:00:07]} 69. Rd5 {[%clk 00:00:30]} {[%emt 00:00:06]} Kf7
{[%clk 00:00:18]} {[%emt 00:00:10]} 70. Rf5+ {[%clk 00:00:20]} {[%emt
00:00:21]} Ke7 {[%clk 00:00:14]} {[%emt 00:00:14]} 71. h6 {[%clk 00:00:23]}
{[%emt 00:00:07]} Ke6 {[%clk 00:00:15]} {[%emt 00:00:09]} 72. Kh4 {[%clk
00:00:26]} {[%emt 00:00:07]} Rc4 {[%clk 00:00:14]} {[%emt 00:00:11]} 73. Rf8
{[%clk 00:00:15]} {[%emt 00:00:20]} Rc5 {[%clk 00:00:17]} {[%emt 00:00:08]} 74.
Rh8 {[%clk 00:00:21]} {[%emt 00:00:04]} Kf7 {[%clk 00:00:20]} {[%emt 00:00:07]}
75. g5 {[%clk 00:00:15]} {[%emt 00:00:16]} Kg6 {[%clk 00:00:13]} {[%emt
00:00:17]} 76. Rg8+ {[%clk 00:00:24]} {[%emt 00:00:01]} Kf5 {[%clk 00:00:16]}
{[%emt 00:00:08]} 77. Rf8+ {[%clk 00:00:30]} {[%emt 00:00:04]} Ke4 {[%clk
00:00:14]} {[%emt 00:00:11]} 78. Rf7 {[%clk 00:00:33]} {[%emt 00:00:08]} Rxb5
{[%clk 00:00:19]} {[%emt 00:00:04]} 79. Rxh7 {[%clk 00:00:39]} {[%emt
00:00:03]} Kf5 {[%clk 00:00:26]} {[%emt 00:00:03]} 80. Rf7+ {[%clk 00:00:38]}
{[%emt 00:00:12]} Kg6 {[%clk 00:00:33]} {[%emt 00:00:03]} 81. Rg7+ {[%clk
00:00:45]} {[%emt 00:00:03]} Kf5 {[%clk 00:00:41]} {[%emt 00:00:01]} 82. h7
{[%clk 00:00:48]} {[%emt 00:00:08]} Rb1 {[%clk 00:00:45]} {[%emt 00:00:05]} 83.
Kg3 {[%clk 00:00:21]} {[%emt 00:00:38]} Rh1 {[%clk 00:00:27]} {[%emt 00:00:27]}
84. g6 {[%clk 00:00:24]} {[%emt 00:00:07]} Kf6 {[%clk 00:00:18]} {[%emt
00:00:19]} 85. Rg8 {[%clk 00:00:31]} {[%emt 00:00:03]} 1-0

[Event "NK Rapid Vrouwen 2019"]
[Site "Amstelveen, Netherlands"]
[Date "2019.12.01"]
[Round "4.2"]
[White "Haast, Anne"]
[Black "Peng, Zhaoqin"]
[Result "1/2-1/2"]
[TimeControl "15m+10s"]
[WhiteTitle "WGM"]
[BlackTitle "GM"]
[WhiteFideId "1017292"]
[BlackFideId "1004786"]
[WhiteElo "2288"]
[BlackElo "2364"]

1. e4 {[%clk 00:15:18]} {[%emt 00:00:01]} c6 {[%clk 00:15:19]} {[%emt
00:00:02]} 2. Nc3 {[%clk 00:15:22]} {[%emt 00:00:06]} d5 {[%clk 00:15:27]}
{[%emt 00:00:02]} 3. Nf3 {[%clk 00:15:31]} {[%emt 00:00:01]} Bg4 {[%clk
00:15:35]} {[%emt 00:00:02]} 4. h3 {[%clk 00:15:34]} {[%emt 00:00:07]} Bxf3
{[%clk 00:15:44]} {[%emt 00:00:02]} 5. Qxf3 {[%clk 00:15:42]} {[%emt 00:00:02]}
Nf6 {[%clk 00:15:52]} {[%emt 00:00:01]} 6. d3 {[%clk 00:15:46]} {[%emt
00:00:07]} e6 {[%clk 00:15:55]} {[%emt 00:00:08]} 7. Qg3 {[%clk 00:15:53]}
{[%emt 00:00:03]} h5 {[%clk 00:15:55]} {[%emt 00:00:10]} 8. h4 {[%clk
00:15:06]} {[%emt 00:00:56]} Nbd7 {[%clk 00:15:36]} {[%emt 00:00:30]} 9. Bd2
{[%clk 00:13:56]} {[%emt 00:01:19]} Bc5 {[%clk 00:13:11]} {[%emt 00:02:35]} 10.
O-O-O {[%clk 00:13:21]} {[%emt 00:00:45]} Ng4 {[%clk 00:12:52]} {[%emt
00:00:29]} 11. Be1 {[%clk 00:11:42]} {[%emt 00:01:50]} Qb8 {[%clk 00:10:29]}
{[%emt 00:02:33]} 12. Qxb8+ {[%clk 00:11:33]} {[%emt 00:00:19]} Rxb8 {[%clk
00:10:38]} {[%emt 00:00:01]} 13. d4 {[%clk 00:11:38]} {[%emt 00:00:04]} Bb4
{[%clk 00:10:09]} {[%emt 00:00:38]} 14. Bd3 {[%clk 00:10:29]} {[%emt 00:01:20]}
Bxc3 {[%clk 00:08:27]} {[%emt 00:01:52]} 15. bxc3 {[%clk 00:10:36]} {[%emt
00:00:04]} b5 {[%clk 00:08:34]} {[%emt 00:00:02]} 16. Kd2 {[%clk 00:10:21]}
{[%emt 00:00:25]} Rb6 {[%clk 00:08:20]} {[%emt 00:00:24]} 17. a4 {[%clk
00:10:11]} {[%emt 00:00:20]} O-O {[%clk 00:07:24]} {[%emt 00:01:06]} 18. f3
{[%clk 00:10:12]} {[%emt 00:00:10]} Ngf6 {[%clk 00:07:21]} {[%emt 00:00:13]} 19.
Bg3 {[%clk 00:10:02]} {[%emt 00:00:20]} Rc8 {[%clk 00:07:22]} {[%emt 00:00:09]}
20. Ra1 {[%clk 00:09:32]} {[%emt 00:00:41]} a6 {[%clk 00:07:23]} {[%emt
00:00:08]} 21. Rhb1 {[%clk 00:08:56]} {[%emt 00:00:46]} dxe4 {[%clk 00:05:40]}
{[%emt 00:01:53]} 22. fxe4 {[%clk 00:08:45]} {[%emt 00:00:21]} e5 {[%clk
00:05:42]} {[%emt 00:00:09]} 23. Bf2 {[%clk 00:06:38]} {[%emt 00:02:17]} Rbb8
{[%clk 00:05:17]} {[%emt 00:00:35]} 24. axb5 {[%clk 00:06:28]} {[%emt
00:00:20]} axb5 {[%clk 00:05:25]} {[%emt 00:00:02]} 25. Ra7 {[%clk 00:06:16]}
{[%emt 00:00:22]} Rd8 {[%clk 00:05:09]} {[%emt 00:00:26]} 26. Ke2 {[%clk
00:05:11]} {[%emt 00:01:15]} Re8 {[%clk 00:04:17]} {[%emt 00:01:02]} 27. Kf3
{[%clk 00:04:59]} {[%emt 00:00:22]} Nb6 {[%clk 00:03:38]} {[%emt 00:00:49]} 28.
Rc7 {[%clk 00:04:37]} {[%emt 00:00:32]} Re6 {[%clk 00:03:13]} {[%emt 00:00:35]}
29. c4 {[%clk 00:03:52]} {[%emt 00:00:55]} exd4 {[%clk 00:02:41]} {[%emt
00:00:42]} 30. cxb5 {[%clk 00:03:54]} {[%emt 00:00:08]} cxb5 {[%clk 00:02:32]}
{[%emt 00:00:19]} 31. Rxb5 {[%clk 00:03:47]} {[%emt 00:00:18]} Rd8 {[%clk
00:02:14]} {[%emt 00:00:27]} 32. Rb4 {[%clk 00:03:21]} {[%emt 00:00:36]} Ng4
{[%clk 00:01:29]} {[%emt 00:00:54]} 33. Bxd4 {[%clk 00:03:14]} {[%emt
00:00:17]} Nd7 {[%clk 00:01:36]} {[%emt 00:00:03]} 34. Kg3 {[%clk 00:01:47]}
{[%emt 00:01:37]} Nde5 {[%clk 00:01:29]} {[%emt 00:00:18]} 35. Be2 {[%clk
00:01:51]} {[%emt 00:00:06]} Rg6 {[%clk 00:01:25]} {[%emt 00:00:13]} 36. Kh3
{[%clk 00:01:54]} {[%emt 00:00:07]} Nc6 {[%clk 00:00:45]} {[%emt 00:00:50]} 37.
Rxc6 {[%clk 00:01:41]} {[%emt 00:00:23]} Rxc6 {[%clk 00:00:54]} {[%emt
00:00:01]} 38. c3 {[%clk 00:01:43]} {[%emt 00:00:08]} Re6 {[%clk 00:00:52]}
{[%emt 00:00:12]} 39. Bf3 {[%clk 00:01:39]} {[%emt 00:00:15]} g6 {[%clk
00:00:44]} {[%emt 00:00:18]} 40. Rb5 {[%clk 00:01:37]} {[%emt 00:00:11]} Rde8
{[%clk 00:00:40]} {[%emt 00:00:14]} 41. Kg3 {[%clk 00:01:37]} {[%emt 00:00:10]}
Ne5 {[%clk 00:00:43]} {[%emt 00:00:08]} 42. Kf4 {[%clk 00:01:43]} {[%emt
00:00:04]} Nc6 {[%clk 00:00:42]} {[%emt 00:00:12]} 43. e5 {[%clk 00:01:30]}
{[%emt 00:00:22]} Rd8 {[%clk 00:00:36]} {[%emt 00:00:15]} 44. Bd5 {[%clk
00:01:27]} {[%emt 00:00:14]} Nxd4 {[%clk 00:00:34]} {[%emt 00:00:12]} 45. cxd4
{[%clk 00:01:36]} Re7 {[%clk 00:00:39]} {[%emt 00:00:04]} 46. Ke4 {[%clk
00:01:32]} {[%emt 00:00:14]} Kg7 {[%clk 00:00:41]} {[%emt 00:00:08]} 47. Bb3
{[%clk 00:01:16]} {[%emt 00:00:26]} f6 {[%clk 00:00:31]} {[%emt 00:00:20]} 48.
e6 {[%clk 00:01:25]} {[%emt 00:00:02]} Rc7 {[%clk 00:00:23]} {[%emt 00:00:18]}
49. Rb6 {[%clk 00:01:27]} {[%emt 00:00:07]} Kf8 {[%clk 00:00:30]} {[%emt
00:00:03]} 50. d5 {[%clk 00:01:23]} {[%emt 00:00:14]} Ke7 {[%clk 00:00:38]}
{[%emt 00:00:02]} 51. Kf4 {[%clk 00:01:27]} {[%emt 00:00:06]} Rc3 {[%clk
00:00:26]} {[%emt 00:00:22]} 52. Rb7+ {[%clk 00:01:28]} {[%emt 00:00:09]} Kd6
{[%clk 00:00:34]} {[%emt 00:00:02]} 53. g4 {[%clk 00:01:28]} {[%emt 00:00:10]}
hxg4 {[%clk 00:00:38]} {[%emt 00:00:06]} 54. Kxg4 {[%clk 00:01:35]} {[%emt
00:00:03]} Re3 {[%clk 00:00:46]} {[%emt 00:00:01]} 55. Kf4 {[%clk 00:01:38]}
{[%emt 00:00:07]} Re5 {[%clk 00:00:52]} {[%emt 00:00:05]} 1/2-1/2

[Event "NK Rapid Vrouwen 2019"]
[Site "Amstelveen, Netherlands"]
[Date "2019.12.01"]
[Round "4.3"]
[White "Keetman, Maaike"]
[Black "Lanchava, Tea"]
[Result "1-0"]
[TimeControl "15m+10s"]
[BlackTitle "IM"]
[WhiteFideId "1033697"]
[BlackFideId "1005308"]
[WhiteElo "2181"]
[BlackElo "2247"]

1. e4 {[%clk 00:15:18]} {[%emt 00:00:01]} g6 {[%clk 00:15:18]} {[%emt
00:00:02]} 2. d4 {[%clk 00:15:26]} {[%emt 00:00:02]} Bg7 {[%clk 00:15:27]}
{[%emt 00:00:01]} 3. Nf3 {[%clk 00:15:20]} {[%emt 00:00:17]} d6 {[%clk
00:15:30]} {[%emt 00:00:07]} 4. Nc3 {[%clk 00:15:11]} {[%emt 00:00:19]} Nf6
{[%clk 00:15:36]} {[%emt 00:00:04]} 5. Be3 {[%clk 00:15:18]} {[%emt 00:00:03]}
a6 {[%clk 00:15:39]} {[%emt 00:00:06]} 6. a4 {[%clk 00:15:24]} {[%emt
00:00:05]} b6 {[%clk 00:15:46]} {[%emt 00:00:03]} 7. Bd3 {[%clk 00:15:16]}
{[%emt 00:00:18]} Bb7 {[%clk 00:15:37]} {[%emt 00:00:20]} 8. O-O {[%clk
00:15:00]} {[%emt 00:00:26]} Nbd7 {[%clk 00:15:39]} {[%emt 00:00:08]} 9. h3
{[%clk 00:14:37]} {[%emt 00:00:32]} O-O {[%clk 00:15:36]} {[%emt 00:00:13]} 10.
Re1 {[%clk 00:13:42]} {[%emt 00:01:05]} c5 {[%clk 00:15:28]} {[%emt 00:00:17]}
11. Qd2 {[%clk 00:12:19]} {[%emt 00:01:33]} Rc8 {[%clk 00:12:47]} {[%emt
00:02:52]} 12. Bh6 {[%clk 00:10:00]} {[%emt 00:02:29]} cxd4 {[%clk 00:11:49]}
{[%emt 00:01:08]} 13. Nxd4 {[%clk 00:10:00]} {[%emt 00:00:10]} Nc5 {[%clk
00:10:33]} {[%emt 00:01:25]} 14. Bxg7 {[%clk 00:08:14]} {[%emt 00:01:57]} Kxg7
{[%clk 00:10:40]} {[%emt 00:00:03]} 15. b4 {[%clk 00:08:18]} {[%emt 00:00:06]}
Nxd3 {[%clk 00:10:42]} {[%emt 00:00:08]} 16. cxd3 {[%clk 00:08:26]} {[%emt
00:00:02]} Qd7 {[%clk 00:09:44]} {[%emt 00:01:09]} 17. Rac1 {[%clk 00:08:12]}
{[%emt 00:00:23]} Rc7 {[%clk 00:09:47]} {[%emt 00:00:07]} 18. Qe3 {[%clk
00:05:30]} {[%emt 00:02:51]} Rfc8 {[%clk 00:09:34]} {[%emt 00:00:24]} 19. Nde2
{[%clk 00:05:34]} {[%emt 00:00:05]} Rc6 {[%clk 00:08:15]} {[%emt 00:01:29]} 20.
f4 {[%clk 00:04:18]} {[%emt 00:01:26]} a5 {[%clk 00:07:26]} {[%emt 00:00:59]}
21. bxa5 {[%clk 00:02:48]} {[%emt 00:01:41]} bxa5 {[%clk 00:07:35]} {[%emt
00:00:02]} 22. Nb5 {[%clk 00:02:56]} {[%emt 00:00:02]} Ba6 {[%clk 00:06:48]}
{[%emt 00:00:56]} 23. Rxc6 {[%clk 00:02:06]} {[%emt 00:01:00]} Rxc6 {[%clk
00:06:42]} {[%emt 00:00:17]} 24. Ned4 {[%clk 00:01:49]} {[%emt 00:00:27]} Rc8
{[%clk 00:06:47]} {[%emt 00:00:04]} 25. Rb1 {[%clk 00:01:36]} {[%emt 00:00:23]}
e5 {[%clk 00:05:50]} {[%emt 00:01:07]} 26. Nf3 {[%clk 00:01:42]} {[%emt
00:00:03]} Qe6 {[%clk 00:04:51]} {[%emt 00:01:09]} 27. Nxd6 {[%clk 00:00:55]}
{[%emt 00:00:58]} exf4 {[%clk 00:03:53]} {[%emt 00:01:08]} 28. Qd4 {[%clk
00:00:58]} {[%emt 00:00:07]} Rc6 {[%clk 00:03:36]} {[%emt 00:00:27]} 29. e5
{[%clk 00:01:01]} {[%emt 00:00:07]} Nh5 {[%clk 00:03:18]} {[%emt 00:00:28]} 30.
Ng5 {[%clk 00:00:55]} {[%emt 00:00:16]} Qa2 {[%clk 00:03:00]} {[%emt 00:00:28]}
31. e6+ {[%clk 00:00:45]} {[%emt 00:00:20]} Nf6 {[%clk 00:01:53]} {[%emt
00:01:17]} 32. Re1 {[%clk 00:00:45]} {[%emt 00:00:09]} Rc2 {[%clk 00:01:24]}
{[%emt 00:00:39]} 33. Ne8+ {[%clk 00:00:33]} {[%emt 00:00:22]} Kh6 {[%clk
00:01:03]} {[%emt 00:00:32]} 34. Nxf7+ {[%clk 00:00:38]} {[%emt 00:00:04]} Kh5
{[%clk 00:01:12]} 35. Nxf6+ {[%clk 00:00:45]} {[%emt 00:00:03]} Kh4 {[%clk
00:01:19]} {[%emt 00:00:03]} 36. Qxf4# {[%clk 00:00:42]} {[%emt 00:00:02]} 1-0